bitfinex/quotes_SOLUSD_20251001
["timestamp","ask_amount","ask_price","bid_price","bid_amount"]
[1759345004302,3.20743622,219.35,219.3,0.72]
[1759345005979,3.20743622,219.37,219.31,4.55975559]
[1759345006185,3.20743622,219.37,219.32,0.72]
[1759345006398,3.20743622,219.37,219.33,32.06]
[1759345006676,7.7659544,219.37,219.34,0.72]
[1759345006885,138.11812898,219.39,219.34,0.72]
[1759345007094,141.3255652,219.39,219.34,0.72]
[1759345007585,0.66,219.38,219.33,32.06]
[1759345007792,0.66,219.38,219.33,32.78]
[1759345008004,5.21850307,219.38,219.33,32.78]
[1759345008482,5.21850307,219.38,219.33,32.06]
[1759345008689,5.21850307,219.38,219.34,0.72]
[1759345009111,5.21850307,219.38,219.33,32.06]
[1759345009411,0.66,219.37,219.33,32.06]
[1759345009794,4.55850307,219.38,219.33,32.06]
[1759345010099,5.21891325,219.36,219.33,32.06]
[1759345010680,3.86743622,219.35,219.28,0.72]
[1759345010910,3.86743622,219.35,219.29,32.06]
[1759345011202,0.66,219.35,219.29,32.78]
[1759345011381,3.20743622,219.34,219.29,32.78]
[1759345011578,3.20743622,219.34,219.3,0.72]
[1759345012008,4.5593398,219.33,219.3,0.72]
[1759345015008,4.5593398,219.33,219.29,32.06]
[1759345015205,4.5593398,219.33,219.29,32.75]
[1759345015914,0.66,219.32,219.29,32.06]
[1759345016491,4.5593398,219.33,219.29,32.06]
[1759345016715,5.2193398,219.33,219.29,32.06]
[1759345017909,2.70979266,219.32,219.27,0.69]
[1759345018092,2.70979266,219.32,219.28,32.02]
[1759345018812,2.70979266,219.32,219.28,32.71]
[1759345019801,2.70979266,219.32,219.28,32.02]
[1759345020694,4.55975559,219.31,219.28,32.02]
[1759345021121,2.04979266,219.3,219.25,21.49]
[1759345021428,2.04979266,219.3,219.25,32.71]
[1759345021429,2.04979266,219.28,219.25,32.71]
[1759345022297,2.04979266,219.28,219.25,32.02]
[1759345022714,4.5605874,219.27,219.25,32.02]
[1759345025390,2.04979266,219.26,219.18,16.62300883]
[1759345025594,2.04979266,219.24,219.19,0.69]
[1759345025825,2.04979266,219.24,219.2,0.69]
[1759345025993,2.04979266,219.24,219.2,32.69]
[1759345026895,4.56141951,219.23,219.2,32.69]
[1759345029107,4.5607954,219.26,219.21,0.69]
[1759345029424,2.04979266,219.24,219.21,0.69]
[1759345031528,4.56141951,219.23,219.21,0.69]
[1759345032427,12.0619885,219.26,219.2,32.0]
[1759345032725,2.04979266,219.24,219.22,0.69]
[1759345033620,2.04979266,219.24,219.2,32.0]
[1759345033824,4.56141951,219.23,219.21,0.69]
[1759345034928,132.9,219.27,219.2,32.0]
[1759345035116,6.14937798,219.34,219.23,20.8]
[1759345035117,4.55916543,219.34,219.23,20.8]
[1759345035425,4.55916543,219.34,219.2,47.96708363]
[1759345035426,4.55916543,219.34,219.27,20.8]
[1759345035600,4.55916543,219.34,219.28,32.08]
[1759345035805,15.95699528,219.34,219.29,0.69]
[1759345036318,15.95699528,219.34,219.3,0.69]
[1759345039230,18.00678794,219.34,219.3,0.69]
[1759345043926,4.55954769,219.32,219.28,32.08]
[1759345044126,5.21954769,219.32,219.28,32.08]
[1759345044350,5.21954769,219.32,219.28,32.75]
[1759345044523,7.26934035,219.32,219.28,32.75]
[1759345044836,6.60934035,219.32,219.28,32.75]
[1759345045633,6.60934035,219.32,219.29,0.67]
[1759345046836,2.04979266,219.34,219.29,0.67]
[1759345047036,2.04979266,219.34,219.3,0.67]
[1759345047419,2.04979266,219.34,219.28,32.08]
[1759345047610,2.04979266,219.34,219.31,0.67]
[1759345048538,4.55892409,219.35,219.32,32.04]
[1759345048837,4.55892409,219.35,219.33,0.67]
[1759345049036,6.60871675,219.35,219.32,32.02]
[1759345049352,7.26871675,219.35,219.32,32.02]
[1759345049641,6.60871675,219.35,219.32,32.02]
[1759345050536,4.55892409,219.35,219.32,32.69]
[1759345050735,2.04979266,219.34,219.32,32.69]
[1759345051650,2.04979266,219.34,219.32,32.02]
[1759345052340,4.5593398,219.33,219.32,32.69]
[1759345053850,2.04979266,219.34,219.32,32.69]
[1759345054026,2.04979266,219.34,219.33,0.67]
[1759345054867,2.04979266,219.34,219.32,32.02]
[1759345055148,2.04979266,219.34,219.32,32.69]
[1759345055734,6.60892882,219.34,219.33,0.67]
[1759345055923,6.60892882,219.34,219.32,32.02]
[1759345056232,6.60892882,219.34,219.32,32.69]
[1759345056742,2.04979266,219.35,219.32,32.02]
[1759345056947,2.04979266,219.35,219.33,0.67]
[1759345057946,6.60881624,219.35,219.33,0.67]
[1759345058947,4.55902358,219.35,219.33,0.67]
[1759345059149,6.60881624,219.35,219.33,0.67]
[1759345059545,4.55902358,219.35,219.33,0.67]
[1759345059751,6.60881624,219.35,219.34,0.67]
[1759345060241,6.60881624,219.35,219.33,0.67]
[1759345061829,139.50851483,219.36,219.34,0.67]
[1759345062432,137.45872217,219.36,219.34,0.67]
[1759345062748,139.50851483,219.36,219.32,32.69]
[1759345062949,139.50851483,219.36,219.33,0.67]
[1759345063851,2.04979266,219.35,219.33,0.67]
[1759345064959,2.04979266,219.35,219.34,0.67]
[1759345065454,137.45872217,219.36,219.34,0.67]
[1759345066869,132.9,219.36,219.32,36.57953931]
[1759345067030,132.9,219.36,219.35,0.67]
[1759345067230,132.9,219.36,219.32,32.02]
[1759345067456,137.45874063,219.36,219.33,0.67]
[1759345067657,137.45874063,219.36,219.34,0.67]
[1759345067853,132.9,219.36,219.34,0.67]
[1759345068935,6.60810095,219.38,219.35,0.67]
[1759345071054,132.9,219.4,219.36,32.63]
[1759345071255,2.04979266,219.41,219.37,0.67]
[1759345071947,2.04979266,219.41,219.38,0.67]
[1759345072254,6.70729412,219.42,219.38,0.67]
[1759345072456,6.70729412,219.42,219.39,0.67]
[1759345073160,4.65750146,219.42,219.39,0.67]
[1759345073355,6.70729412,219.42,219.39,0.67]
[1759345073656,0.1,219.42,219.4,0.67]
[1759345073963,0.1,219.42,219.4,32.63]
[1759345074259,0.1,219.42,219.41,0.67]
[1759345076744,0.1,219.42,219.41,5.2276774]
[1759345079670,0.1,219.42,219.41,0.67]
[1759345080275,0.1,219.42,219.37,20.8]
[1759345080452,3.85932989,219.41,219.38,31.96]
[1759345080761,3.85932989,219.41,219.39,31.96]
[1759345080971,3.19932989,219.41,219.39,31.96]
[1759345081746,4.55788514,219.4,219.39,31.96]
[1759345082253,7.75721503,219.4,219.39,31.96]
[1759345082980,7.75703076,219.41,219.39,31.96]
[1759345083284,4.55770087,219.41,219.39,31.96]
[1759345085160,0.66,219.4,219.39,31.96]
[1759345085362,3.19932989,219.4,219.39,31.96]
[1759345086746,8.41721503,219.4,219.33,20.8]
[1759345086949,3.19932989,219.37,219.34,32.63]
[1759345087167,3.19932989,219.37,219.32,4.55947324]
[1759345087168,3.19932989,219.37,219.35,31.96]
[1759345087377,3.19932989,219.37,219.35,32.63]
[1759345088387,3.19932989,219.38,219.35,32.63]
[1759345088885,3.19932989,219.38,219.36,0.67]
[1759345089446,3.19932989,219.38,219.35,31.96]
[1759345089663,3.19932989,219.38,219.36,0.67]
[1759345091049,7.75776043,219.38,219.36,0.67]
[1759345092474,7.75776043,219.38,219.35,31.96]
[1759345092652,7.75776043,219.38,219.35,32.63]
[1759345094496,7.75776043,219.38,219.36,0.67]
[1759345097261,7.75776043,219.38,219.36,32.63]
[1759345097462,7.75776043,219.38,219.36,31.96]
[1759345097889,7.75776043,219.38,219.34,0.67]
[1759345098070,7.75776043,219.38,219.35,32.63]
[1759345098794,3.19932989,219.37,219.35,31.96]
[1759345098964,3.19932989,219.36,219.35,31.96]
[1759345100176,7.75804615,219.36,219.35,32.62]
[1759345101179,7.75804615,219.36,219.35,31.96]
[1759345101679,7.75804615,219.36,219.35,32.62]
[1759345103092,7.75804615,219.36,219.35,32.62]
[1759345103289,7.75804615,219.36,219.35,31.96]
[1759345103494,19.81483681,219.36,219.33,31.96]
[1759345103699,7.75846183,219.34,219.33,31.96]
[1759345108895,4.55913194,219.34,219.33,31.96]
[1759345109079,7.75846183,219.34,219.33,31.96]
[1759345109504,7.75846183,219.34,219.32,0.72]
[1759345110191,7.75846183,219.34,219.31,31.96]
[1759345110383,7.75846183,219.34,219.32,0.72]
[1759345111199,3.19932989,219.33,219.32,0.72]
[1759345112001,3.19932989,219.33,219.31,31.96]
[1759345112181,7.75883999,219.33,219.31,31.96]
[1759345112580,7.75883999,219.33,219.31,32.68]
[1759345115402,3.19932989,219.32,219.31,31.96]
[1759345116409,7.75887758,219.32,219.31,31.96]
[1759345116703,7.75887758,219.32,219.29,0.72]
[1759345116910,7.75887758,219.32,219.3,31.96]
[1759345117276,7.75887758,219.32,219.3,32.68]
[1759345118475,7.75887758,219.32,219.31,0.72]
[1759345119380,4.55954769,219.32,219.31,0.72]
[1759345124110,3.19932989,219.32,219.31,0.72]
[1759345125305,7.75887758,219.32,219.31,0.72]
[1759345129909,4.55915693,219.34,219.31,0.72]
[1759345130110,3.19932989,219.33,219.31,0.72]
[1759345130289,3.19932989,219.33,219.3,31.96]
[1759345130490,3.19932989,219.33,219.32,0.72]
[1759345132917,7.75866969,219.33,219.32,0.72]
[1759345133314,7.75866969,219.33,219.3,31.96]
[1759345133498,7.75866969,219.33,219.31,0.72]
[1759345138316,2.04986286,219.33,219.31,0.72]
[1759345140104,4.55913194,219.34,219.32,0.72]
[1759345140412,2.04986286,219.33,219.32,0.72]
[1759345140916,132.9,219.38,219.3,36.51987529]
[1759345141121,132.9,219.38,219.32,11.39675758]
[1759345141417,132.9,219.38,219.33,32.68]
[1759345141602,132.9,219.38,219.34,0.72]
[1759345142623,132.9,219.38,219.33,50.21133094]
[1759345142624,2.04986286,219.35,219.33,31.96]
[1759345142933,2.04986286,219.34,219.33,31.96]
[1759345143407,2.04986286,219.34,219.29,0.72]
[1759345143595,2.04986286,219.33,219.31,31.94]
[1759345144022,2.04986286,219.33,219.29,0.72]
[1759345144324,2.04986286,219.33,219.3,31.94]
[1759345144325,2.04986286,219.31,219.3,31.94]
[1759345145217,6.60961845,219.31,219.3,31.94]
[1759345145426,4.55975559,219.31,219.3,31.94]
[1759345145612,6.60944896,219.32,219.3,31.94]
[1759345145921,6.60944896,219.32,219.3,32.66]
[1759345146714,6.60944896,219.32,219.3,31.94]
[1759345147021,4.5595861,219.32,219.31,0.72]
[1759345147428,4.55954769,219.33,219.31,0.72]
[1759345147597,132.9,219.37,219.31,5.27957661]
[1759345147807,4.55825796,219.39,219.31,16.67756981]
[1759345148015,4.55825796,219.39,219.32,0.72]
[1759345148524,4.55825796,219.39,219.33,11.3979932]
[1759345148712,4.55825796,219.39,219.34,32.66]
[1759345148911,4.55825796,219.39,219.35,0.72]
[1759345149109,4.55825796,219.39,219.36,0.72]
[1759345150227,4.55788514,219.4,219.37,0.72]
[1759345151211,4.55788514,219.4,219.35,0.72]
[1759345151428,4.55788514,219.4,219.36,0.72]
[1759345151913,4.5576774,219.41,219.34,36.49909458]
[1759345152126,4.5576774,219.41,219.37,0.72]
[1759345152320,4.5576774,219.41,219.34,36.49909458]
[1759345152524,5.2176774,219.41,219.35,0.72]
[1759345152821,18.90911796,219.41,219.35,0.72]
[1759345154636,18.90911796,219.41,219.34,31.94]
[1759345154637,30.30331147,219.41,219.34,31.94]
[1759345154838,0.66,219.4,219.34,31.94]
[1759345155049,0.66,219.4,219.34,32.66]
[1759345155234,14.35144056,219.4,219.34,32.66]
[1759345156538,4.55809289,219.39,219.35,0.72]
[1759345156838,4.55809289,219.39,219.36,0.72]
[1759345157141,4.55809289,219.39,219.34,31.94]
[1759345157142,4.55809289,219.39,219.34,32.66]
[1759345157328,4.55809289,219.39,219.35,0.72]
[1759345158840,5.21809289,219.39,219.35,0.72]
[1759345159040,4.55809289,219.39,219.35,0.72]
[1759345159830,2.04986286,219.36,219.32,0.72]
[1759345160030,2.04986286,219.35,219.34,31.94]
[1759345161355,2.04986286,219.35,219.34,32.66]
[1759345162356,4.55892409,219.35,219.34,32.66]
[1759345162539,4.55874004,219.36,219.34,32.66]
[1759345162735,6.6086029,219.36,219.34,32.66]
[1759345168953,6.6086029,219.36,219.34,31.94]
[1759345169253,6.6086029,219.36,219.34,32.66]
[1759345174458,4.55874004,219.36,219.34,32.66]
[1759345175968,4.55874004,219.36,219.34,31.94]
[1759345178643,2.04986286,219.35,219.34,31.94]
[1759345179242,2.04986286,219.35,219.34,32.66]
[1759345179964,4.55874004,219.36,219.34,32.66]
[1759345180164,2.04986286,219.35,219.34,32.66]
[1759345180755,6.60878695,219.35,219.34,32.66]
[1759345182486,18.66609718,219.35,219.29,13.69331537]
[1759345182638,2.04986286,219.31,219.3,31.92]
[1759345183058,2.04986286,219.31,219.3,32.64]
[1759345184260,6.60961845,219.31,219.3,31.92]
[1759345184846,7.26961845,219.31,219.26,0.72]
[1759345185166,2.04986286,219.28,219.26,32.64]
[1759345186540,6.61026268,219.28,219.26,32.64]
[1759345187154,6.61026268,219.28,219.27,0.72]
[1759345189375,6.61026268,219.28,219.26,31.92]
[1759345189549,6.61026268,219.28,219.26,32.64]
[1759345190260,6.61026268,219.28,219.27,0.72]
[1759345190974,2.04986286,219.28,219.27,0.72]
[1759345191272,2.04986286,219.29,219.27,0.72]
[1759345195577,132.9,219.32,219.28,0.69]
[1759345195875,132.9,219.32,219.29,31.92]
[1759345196083,132.9,219.32,219.3,0.69]
[1759345196280,132.9,219.32,219.31,0.69]
[1759345196469,132.9,219.32,219.3,0.69]
[1759345196776,134.94986286,219.32,219.29,31.92]
[1759345196978,134.94986286,219.32,219.29,32.61]
[1759345197179,139.50941055,219.32,219.29,32.61]
[1759345197682,139.50941055,219.32,219.29,31.92]
[1759345197878,139.50941055,219.32,219.29,32.61]
[1759345198381,139.50964608,219.32,219.29,32.61]
[1759345198586,139.50964608,219.32,219.29,31.45641]
[1759345200283,3.20336339,219.31,219.29,31.45641]
[1759345200457,7.76313068,219.31,219.29,32.61]
[1759345201886,7.76313068,219.31,219.3,0.69]
[1759345202093,8.42313068,219.31,219.29,31.92]
[1759345202273,5.21996352,219.3,219.29,31.92]
[1759345202477,8.42332691,219.3,219.29,31.92]
[1759345202676,8.42332691,219.3,219.23,0.69]
[1759345202870,3.20336339,219.25,219.23,0.69]
[1759345203071,3.20336339,219.24,219.21,32.61]
[1759345203290,3.20336339,219.23,219.22,0.69]
[1759345204396,7.76491994,219.23,219.21,31.92]
[1759345205588,3.20336339,219.22,219.21,31.92]
[1759345205888,3.20336339,219.22,219.21,0.69]
[1759345206272,3.20336339,219.22,219.19,31.92]
[1759345206467,3.20336339,219.22,219.2,0.69]
[1759345206666,3.20336339,219.23,219.21,0.69]
[1759345207785,3.20336339,219.22,219.21,0.69]
[1759345208181,3.20336339,219.23,219.22,0.69]
[1759345208367,3.20336339,219.26,219.22,32.61]
[1759345208562,3.20336339,219.26,219.23,0.69]
[1759345209088,3.20336339,219.26,219.24,0.69]
[1759345209677,7.76426995,219.26,219.24,0.69]
[1759345210477,3.20336339,219.27,219.25,0.69]
[1759345210681,3.20336339,219.27,219.26,0.69]
[1759345210890,7.7639314,219.28,219.26,0.69]
[1759345212086,3.20336339,219.27,219.26,0.69]
[1759345212582,3.20336339,219.27,219.22,36.48155438]
[1759345212792,3.20336339,219.27,219.24,0.69]
[1759345213271,7.7639314,219.28,219.24,0.69]
[1759345214578,7.7639314,219.28,219.25,0.69]
[1759345215682,7.7639314,219.28,219.22,36.48155438]
[1759345215683,3.20336339,219.27,219.22,31.92]
[1759345215871,3.20336339,219.27,219.24,0.69]
[1759345216072,132.9,219.29,219.25,0.69]
[1759345216274,132.9,219.29,219.26,31.92]
[1759345216480,132.9,219.29,219.27,0.69]
[1759345217377,132.9,219.29,219.26,31.92]
[1759345217584,132.9,219.29,219.27,0.69]
[1759345217796,136.10336339,219.29,219.27,0.69]
[1759345218188,140.66358072,219.29,219.26,31.92]
[1759345218499,3.20336339,219.28,219.26,31.92]
[1759345219975,7.76380607,219.28,219.26,31.92]
[1759345220305,4.56044268,219.28,219.26,32.6]
[1759345220505,7.76380607,219.28,219.26,32.6]
[1759345220897,7.76380607,219.28,219.26,31.92]
[1759345221077,7.76380607,219.28,219.26,32.6]
[1759345222003,140.66355351,219.29,219.26,31.92]
[1759345222283,136.10336339,219.29,219.27,0.68]
[1759345222790,132.9,219.29,219.28,0.68]
[1759345223495,4.55932069,219.34,219.28,0.68]
[1759345223678,140.66232123,219.35,219.28,3.88336339]
[1759345224080,140.66232123,219.35,219.29,5.27017146]
[1759345224291,140.66232123,219.35,219.3,32.63]
[1759345224479,3.20336339,219.34,219.31,0.71]
[1759345224790,3.20336339,219.33,219.3,31.92]
[1759345224980,3.20336339,219.33,219.31,0.71]
[1759345225169,3.20336339,219.32,219.31,0.71]
[1759345225374,3.20336339,219.32,219.3,31.92]
[1759345225678,3.20336339,219.32,219.3,32.63]
[1759345226385,3.20336339,219.32,219.3,31.92]
[1759345226792,3.20336339,219.32,219.3,32.63]
[1759345226994,7.76292453,219.32,219.3,32.63]
[1759345228277,3.20336339,219.32,219.3,32.63]
[1759345229604,7.76295428,219.32,219.3,32.63]
[1759345229906,7.76270182,219.34,219.31,0.71]
[1759345230104,4.55933843,219.34,219.31,0.71]
[1759345230283,7.76270182,219.34,219.31,0.71]
[1759345231009,132.9,219.35,219.32,0.71]
[1759345232103,136.10336339,219.35,219.31,0.71]
[1759345232303,140.66229723,219.35,219.3,36.47981508]
[1759345232507,140.66229723,219.35,219.31,0.71]
[1759345232804,137.45893384,219.35,219.3,31.92]
[1759345233106,140.66229723,219.35,219.31,0.71]
[1759345234308,132.9,219.35,219.31,0.71]
[1759345234899,132.9,219.35,219.31,5.26970008]
[1759345235099,132.9,219.35,219.32,0.71]
[1759345235303,132.9,219.35,219.3,31.92]
[1759345235304,140.66237455,219.35,219.3,32.63]
[1759345235501,140.66237455,219.35,219.31,0.71]
[1759345235900,3.20336339,219.34,219.31,0.71]
[1759345236717,136.10336339,219.35,219.32,0.71]
[1759345236904,132.9,219.35,219.3,36.47981044]
[1759345237111,132.9,219.35,219.33,0.71]
[1759345237594,132.9,219.35,219.3,36.47981044]
[1759345237802,136.76336339,219.35,219.31,0.71]
[1759345238089,136.76336339,219.35,219.3,31.92]
[1759345238090,3.20336339,219.34,219.3,31.92]
[1759345238507,3.20336339,219.34,219.31,0.71]
[1759345238827,3.86336339,219.33,219.3,31.92]
[1759345238998,3.20336339,219.33,219.3,31.92]
[1759345239705,7.76287543,219.33,219.3,31.92]
[1759345239908,3.20336339,219.32,219.3,31.92]
[1759345241438,3.86336339,219.32,219.3,31.92]
[1759345241894,8.42311898,219.31,219.25,25.36097302]
[1759345242094,3.20336339,219.29,219.26,32.61]
[1759345242289,3.20336339,219.29,219.27,0.71]
[1759345242726,4.55975559,219.31,219.27,0.71]
[1759345242727,3.20336339,219.3,219.27,0.71]
[1759345243104,7.76334046,219.3,219.27,0.71]
[1759345243426,8.42334046,219.3,219.26,31.9]
[1759345243626,3.20336339,219.28,219.26,31.9]
[1759345244330,3.20336339,219.29,219.26,31.9]
[1759345244499,7.76334046,219.3,219.27,0.71]
[1759345245421,7.76334046,219.3,219.28,0.71]
[1759345247623,7.76334046,219.3,219.26,32.61]
[1759345247822,8.42334046,219.3,219.26,31.9]
[1759345248121,7.76334046,219.3,219.27,0.71]
[1759345248339,7.76334046,219.3,219.28,0.71]
[1759345248830,7.76334046,219.3,219.26,31.9]
[1759345248831,7.76334046,219.3,219.26,32.61]
[1759345249029,7.76334046,219.3,219.27,0.71]
[1759345249523,7.76334046,219.3,219.26,31.9]
[1759345250227,7.76334046,219.3,219.27,0.71]
[1759345251121,7.76334046,219.3,219.26,31.9]
[1759345251327,7.76334046,219.3,219.26,32.61]
[1759345252612,4.55997707,219.3,219.26,32.61]
[1759345252815,7.76334046,219.3,219.26,32.61]
[1759345253528,7.76334046,219.3,219.26,31.9]
[1759345253735,7.76334046,219.3,219.27,0.67]
[1759345256409,4.55997707,219.3,219.27,0.67]
[1759345256605,7.76334046,219.3,219.27,0.67]
[1759345258406,7.76334046,219.3,219.26,31.9]
[1759345258629,7.76334046,219.3,219.26,32.57]
[1759345258831,3.20336339,219.28,219.26,31.9]
[1759345259028,0.66,219.29,219.26,31.9]
[1759345259233,3.20336339,219.28,219.26,31.9]
[1759345259815,3.20336339,219.29,219.26,31.9]
[1759345260019,3.20336339,219.29,219.27,0.67]
[1759345260227,2.05056225,219.29,219.27,0.67]
[1759345260613,6.61083412,219.29,219.27,0.67]
[1759345266124,6.61083412,219.29,219.26,31.9]
[1759345266437,6.61083412,219.29,219.26,32.57]
[1759345270326,6.61083412,219.29,219.26,31.9]
[1759345270527,6.61083412,219.29,219.27,0.67]
[1759345271037,2.05056225,219.29,219.27,0.67]
[1759345271715,4.55975559,219.31,219.26,31.88]
[1759345271915,2.05056225,219.29,219.27,0.67]
[1759345272556,6.61078924,219.29,219.28,0.67]
[1759345272848,6.61078924,219.29,219.27,0.67]
[1759345273033,6.61078924,219.29,219.26,31.88]
[1759345273034,4.56022699,219.29,219.28,0.67]
[1759345276856,6.61078924,219.29,219.28,0.67]
[1759345277851,6.61078924,219.29,219.27,32.55]
[1759345278453,6.61078924,219.29,219.27,31.88]
[1759345278651,6.61094167,219.28,219.27,31.88]
[1759345278947,18.67189022,219.28,219.23,0.67]
[1759345279149,2.05056225,219.26,219.24,31.88]
[1759345279724,2.05056225,219.26,219.23,0.67]
[1759345279926,4.56100342,219.25,219.23,31.88]
[1759345280126,4.56100342,219.25,219.24,0.67]
[1759345286150,4.5605874,219.27,219.23,31.88]
[1759345286456,4.5605874,219.27,219.24,0.67]
[1759345287164,15.9620559,219.27,219.24,0.67]
[1759345288553,16.6220559,219.27,219.23,31.88]
[1759345288755,16.6220559,219.27,219.23,32.55]
[1759345289069,2.05056225,219.24,219.2,0.67]
[1759345289377,2.05056225,219.22,219.21,31.88]
[1759345290747,6.61213571,219.23,219.21,32.55]
[1759345290954,2.05056225,219.25,219.22,0.67]
[1759345291134,132.9,219.26,219.22,0.67]
[1759345291135,134.95056225,219.26,219.22,0.67]
[1759345292862,139.51142141,219.26,219.22,0.67]
[1759345294068,139.51142141,219.26,219.23,0.67]
[1759345295264,2.05056225,219.25,219.21,32.55]
[1759345295563,2.05056225,219.23,219.21,31.88]
[1759345295751,2.05056225,219.23,219.2,31.88]
[1759345296262,6.61215933,219.23,219.2,31.88]
[1759345296469,6.61215933,219.23,219.2,32.55]
[1759345297053,6.61215933,219.23,219.2,31.88]
[1759345297254,6.61215933,219.23,219.2,32.55]
[1759345299468,2.05056225,219.22,219.2,32.55]
[1759345299972,6.61215933,219.23,219.21,0.67]
[1759345301245,135.61056225,219.22,219.17,0.87]
[1759345301444,2.05056225,219.19,219.17,0.2]
[1759345302348,2.05056225,219.18,219.17,0.2]
[1759345302549,134.95056225,219.21,219.18,0.67]
[1759345302863,132.9,219.21,219.18,0.67]
[1759345303462,132.9,219.21,219.18,32.55]
[1759345303653,132.9,219.21,219.19,0.67]
[1759345303868,132.9,219.21,219.2,0.67]
[1759345304987,134.95056225,219.21,219.18,32.55]
[1759345305156,134.95056225,219.21,219.19,0.67]
[1759345306263,132.9,219.25,219.2,0.67]
[1759345306447,2.05056225,219.24,219.2,0.67]
[1759345307042,2.05056225,219.24,219.21,0.67]
[1759345310378,6.61180947,219.24,219.21,0.67]
[1759345311077,132.9,219.25,219.21,0.67]
[1759345311375,2.05056225,219.24,219.21,0.67]
[1759345311583,133.56,219.25,219.21,0.67]
[1759345311884,138.12109126,219.25,219.21,0.67]
[1759345314169,132.9,219.25,219.2,4.56201752]
[1759345314370,132.9,219.25,219.21,0.72]
[1759345314596,132.9,219.25,219.22,0.72]
[1759345314876,132.9,219.25,219.23,0.72]
[1759345318884,4.56038026,219.28,219.24,0.72]
[1759345319085,4.55954769,219.32,219.27,2.05056225]
[1759345319287,4.55954769,219.32,219.28,0.72]
[1759345319789,4.55954769,219.32,219.29,0.72]
[1759345321775,4.55954769,219.32,219.3,0.72]
[1759345322116,5.21954769,219.32,219.28,0.72]
[1759345322291,4.55954769,219.32,219.28,0.72]
[1759345322890,4.55954769,219.32,219.29,0.72]
[1759345323182,3.07006835,219.33,219.29,0.72]
[1759345323392,133.56,219.34,219.3,0.72]
[1759345323763,3.2030043,219.35,219.29,3.2030043]
[1759345324087,3.06995778,219.37,219.31,3.9230043]
[1759345324290,6.27296208,219.38,219.32,0.72]
[1759345324593,6.27296208,219.38,219.32,3.9230043]
[1759345324886,6.27296208,219.38,219.33,0.72]
[1759345325087,4.55852097,219.37,219.33,0.72]
[1759345325975,0.66,219.36,219.31,3.9230043]
[1759345326279,0.66,219.36,219.32,0.72]
[1759345326678,3.8630043,219.36,219.28,4.5601752]
[1759345326880,3.8630043,219.36,219.3,3.2030043]
[1759345327090,4.55892409,219.35,219.31,0.72]
[1759345328393,4.55892409,219.35,219.32,0.72]
[1759345330189,4.5593398,219.33,219.28,3.9230043]
[1759345330372,5.2193398,219.33,219.28,3.9230043]
[1759345330782,4.5593398,219.33,219.29,0.72]
[1759345331492,4.5593398,219.33,219.29,3.9230043]
[1759345331991,4.5593398,219.33,219.3,3.9230043]
[1759345332193,4.55901629,219.35,219.31,3.9230043]
[1759345332397,3.2030043,219.37,219.32,0.72]
[1759345332702,3.8630043,219.37,219.32,0.72]
[1759345332870,4.55871626,219.36,219.32,3.2030043]
[1759345333195,0.66,219.35,219.3,3.2030043]
[1759345333374,0.66,219.34,219.3,3.2030043]
[1759345333991,3.2030043,219.34,219.29,31.84]
[1759345334192,0.66,219.33,219.29,31.84]
[1759345334402,4.55954769,219.32,219.29,31.84]
[1759345334605,4.55954769,219.32,219.29,32.56]
[1759345334783,4.55954769,219.32,219.3,0.72]